[Event "Charlotte IM-C May 2022"]
[Site "Charlotte"]
[Date "2022.05.06"]
[Round "4.4"]
[White "Wang, Tianqi"]
[Black "Andrews, Todd"]
[Result "1-0"]
[ECO "A01"]
[WhiteElo "2331"]
[BlackElo "2209"]
[Annotator "TA"]
[PlyCount "90"]
[EventDate "2022.05.04"]
[EventType "tourn"]
[EventCountry "USA"]
[SourceTitle "playchess.com"]
[Source "ChessBase"]
[SourceQuality "1"]
[TimeControl "5400+30"]

{[%evp 11,90,-2,0,0,0,0,0,0,0,0,17,14,11,8,0,0,13,-12,-31,-15,-12,-35,-18,-66,-84,-129,-146,-146,-141,-179,-181,-157,-163,-170,-173,-161,-152,-127,179,72,146,125,182,153,177,177,175,152,208,188,287,191,528,518,486,171,182,177,159,128,148,144,104,91,84,77,105,97,82,0,402,391,603,594,512,491,5157,5081,29983,29984,29977]} 1. b3 {[%emt 0:00:04]} e5 {[%emt 0:06:44]} 2. Bb2 {[%emt 0:00:06]} Nc6 {[%emt 1:24:46]} 3. c4 {[%emt 0:00:12]} Nf6 {[%emt 0:00:00]} 4. e3 {[%emt 0:00:06]} d5 {[%emt 0:00:00]} 5. cxd5 {[%emt 0:00:06]} Nxd5 {[%emt 0:00:00]} 6. a3 {[%emt 0:00:05]} Bd6 {[%emt 0:00:00]} 7. d3 {[%emt 0:01:17] A01: Nimzowitsch-Larsen Opening.} Qg5 {[%emt 0:00:00]} 8. Nf3 {[%emt 0:00:19]} Qg6 {[%emt 0:00:00]} 9. Nbd2 {[%emt 0:00:30] The position is equal.} O-O {[%emt 0:00:00] [#]} 10. g3 $146 {[%emt 0:06:02]} ({Predecessor:} 10. Qc2 Be6 11. h4 f6 12. h5 Qf7 13. h6 g5 14. Ne4 a5 15. Be2 Nde7 16. Nfd2 {1-0 (36) Sunilduth Lyna,N (2624)-Wagner,D (2572) Chess.com INT 2021}) 10... Re8 {[%emt 0:00:00]} 11. Nh4 {[%emt 0:01:58]} Qh6 {[%emt 0:00:00]} 12. Bg2 {[%emt 0:04:17]} Be6 {[%emt 0:00:00]} 13. O-O {[%emt 0:01:13]} Rad8 {[%emt 0:00:00]} 14. Re1 {[%emt 0:01:19]} g5 {[%emt 0:00:00][%cal Bg7g5,Bg5g4][%mdl 32]} 15. Nhf3 {[%emt 0:00:06]} g4 {[%emt 0:00:00]} 16. Nh4 {[%emt 0:09:44]} Be7 {[%emt 0:00:00]} 17. e4 {[%emt 0:01:00] [#]} (17. Rc1 $11) 17... Nf4 $1 $15 {[%emt 0:00:00]} 18. gxf4 {[%emt 0:08:31]} (18. Nf5 Bxf5) 18... Qxh4 {[%emt 0:00:00]} 19. f5 {[%emt 0:00:21] [#]} Rxd3 $1 {[%emt 0:00:00]} 20. Qc2 {[%emt 0:44:59] [#]} (20. fxe6 Red8) 20... Red8 {[%emt 0:00:00]} 21. Rad1 {[%emt 0:00:38] [#]} Bg5 $1 {[%emt 0:00:00][%cal Rd3d2]} 22. Bc3 {[%emt 0:01:05]} Bxd2 {[%emt 0:02:12]} 23. Rxd2 {[%emt 0:00:11]} Rxd2 {[%emt 0:00:09]} 24. Bxd2 {[%emt 0:00:23]} Nd4 {[%emt 0:00:32][%mdl 8192]} 25. Qxc7 {[%emt 0:05:25]} (25. Qc1 $1 $18 {has better winning chances. And now Bg5 would win.} Rd6 26. fxe6 Nxe6 27. Be3) 25... Bxb3 {[%emt 0:03:21]} ({Better is} 25... Bxf5 26. exf5 Nf3+ 27. Bxf3 gxf3) 26. Qxe5 $16 {[%emt 0:02:27]} Nf3+ {[%emt 0:05:46]} (26... Nc6 $16 {might work better.} 27. Qf4 h6) 27. Bxf3 $18 {[%emt 0:00:10]} Rxd2 {[%emt 0:00:00]} (27... gxf3 $2 28. Kh1 $1 Qxf2 29. Rg1+ Qg2+ 30. Rxg2+ $18) 28. Be2 {[%emt 0:00:31] Dancing on a razor blade.} Qg5 {[%emt 0:00:00]} 29. Qg3 {[%emt 0:02:42]} (29. Qb5 $6 Bc2 $16) 29... Bc2 {[%emt 0:00:00]} (29... Ba4 $16 {was necessary.}) 30. h4 {[%emt 0:03:02]} (30. Qxg4 Qxg4+ 31. Bxg4 f6 $14) (30. Bxg4 $6 Rd3 31. Re3 Rxe3 32. fxe3 h6 $16) 30... Qg7 {[%emt 0:00:00]} (30... Qh6 $142 31. Bxg4 (31. Qxg4+ Qg7 $16) 31... Rd3) 31. e5 {[%emt 0:00:23] aiming for f6.} (31. Bxg4 Rd8 32. Kh2 Kh8 $16) 31... Rd4 $2 {[%emt 0:00:00]} (31... Bxf5 {is a better chance.} 32. Qf4 Rxe2 33. Rxe2 Qg6) 32. f6 {[%emt 0:03:30]} Qg6 {[%emt 0:00:00]} 33. Bf1 $2 {[%emt 0:00:16]} (33. Bb5 {Black must now prevent e6.} Be4 34. Qe3) 33... Bf5 {[%emt 0:00:15]} 34. Qe3 {[%emt 0:00:44]} ({But not} 34. e6 fxe6 35. Qb8+ Kf7 $16) 34... Rd8 {[%emt 0:00:27]} 35. Qf4 {[%emt 0:00:12][%cal Oh4h5] Hoping for h5!} Be6 {[%emt 0:01:17]} 36. Bg2 $40 {[%emt 0:00:22][%mdl 128] White is out for blood.} Qh5 {[%emt 0:00:25]} 37. Qg3 {[%emt 0:01:04] White is more active.} b5 {[%emt 0:00:13]} 38. Bf1 {[%emt 0:00:29]} a6 {[%emt 0:00:15] [#]} 39. Re3 $1 {[%emt 0:00:33]} Kh8 {[%emt 0:00:49]} 40. f4 {[%emt 0:00:54]} (40. Rd3 $16 {[%cal Rd3d8]} Rg8 41. Rd6) 40... Rd1 {[%emt 0:00:30][%mdl 8192]} (40... Qg6 $11 {and Black is okay.}) 41. Rd3 {[%emt 0:01:14]} Rxf1+ {[%emt 0:01:04]} (41... Rxd3 $142 42. Qxd3 Qg6) 42. Kxf1 {[%emt 0:00:03][%cal Rd3d8]} ({Weaker is} 42. Kg2 h6 43. Rd8+ (43. Kxf1 Bc4 $11) 43... Kh7 44. Kxf1 Qf5 $16) 42... Bc4 {[%emt 0:00:04]} 43. Kg2 {[%emt 0:00:24][%cal Rd3d8]} Bxd3 {[%emt 0:00:05]} (43... h6 $142 44. Rd8+ Kh7) 44. Qxd3 {[%emt 0:00:02][%cal Rd3d8]} h6 {[%emt 0:00:40]} 45. e6 {[%emt 0:00:59]} Qxh4 {[%emt 0:01:57] Weighted Error Value: White=0.21 (precise) /Black=0.74} 1-0

[Event "Charlotte IM-C May 2022"]
[Site "Charlotte"]
[Date "2022.05.06"]
[Round "4.5"]
[White "Andrianov, Nikolai"]
[Black "King, Alexander"]
[Result "1/2-1/2"]
[WhiteElo "2317"]
[BlackElo "2283"]
[Annotator "TA"]
[PlyCount "38"]
[EventDate "2022.05.04"]
[EventType "tourn"]
[EventCountry "USA"]
[SourceTitle "playchess.com"]
[Source "ChessBase"]
[SourceQuality "1"]
[TimeControl "5400+30"]

{[%evp 10,14,19,5,23,0,17]} 1. Nf3 {[%emt 0:00:01]} d5 {[%emt 0:00:07]} 2. b3 {[%emt 0:00:54]} Bf5 {[%emt 0:00:19]} 3. Bb2 {[%emt 0:00:06]} e6 {[%emt 0:00:06]} 4. g3 {[%emt 0:00:28]} Nf6 {[%emt 0:00:08]} 5. Bg2 {[%emt 0:00:04]} h6 {[%emt 0:00:06]} 6. O-O {[%emt 0:00:11]} Be7 {[%emt 0:00:05] A12: English Opening: 1...c6 with b3 by White.} 7. c4 {[%emt 0:03:03]} c6 {[%emt 0:00:25] [#] A rather calm draw.} {Predecessor:} 8. d3 $146 O-O 9. Nbd2 Nbd7 10. a3 a5 11. Qc2 Re8 12. Bc3 Bd6 13. b4 axb4 14. axb4 e5 15. e4 Bh7 16. Rxa8 Qxa8 17. Ra1 Qb8 18. cxd5 cxd5 19. exd5 Nxd5 {½-½ (54) Artemiev,V (2708)-Giri,A (2764) Chess.com INT 2020} 1/2-1/2

[Event "Charlotte IM-C May 2022"]
[Site "Charlotte"]
[Date "2022.05.07"]
[Round "5.1"]
[White "King, Alexander"]
[Black "Martin Del Campo Cardenas, Roberto Abel"]
[Result "1-0"]
[ECO "E62"]
[WhiteElo "2283"]
[BlackElo "2263"]
[Annotator "TA"]
[PlyCount "75"]
[EventDate "2022.05.04"]
[EventType "tourn"]
[EventCountry "USA"]
[SourceTitle "playchess.com"]
[Source "ChessBase"]
[SourceQuality "1"]
[TimeControl "5400+30"]

{[%evp 19,75,47,83,47,52,38,32,21,20,24,30,31,93,83,88,87,162,166,176,177,172,166,170,123,117,0,231,217,218,218,214,213,276,274,295,302,281,251,351,304,300,270,642,636,634,608,614,599,1759,1625,2487,1582,1747,1630,29988,29989,29989,29990]} 1. d4 {[%emt 0:00:04]} Nf6 {[%emt 0:00:11]} 2. c4 {[%emt 0:00:12]} d6 {[%emt 0:00:58]} 3. Nf3 {[%emt 0:00:08]} g6 {[%emt 0:00:20]} 4. g3 {[%emt 0:01:05]} Bg7 {[%emt 0:00:10]} 5. Bg2 {[%emt 0:00:05]} O-O {[%emt 0:00:50]} 6. O-O {[%emt 0:00:08]} c6 {[%emt 0:04:41]} 7. Nc3 {[%emt 0:00:50]} Qa5 {[%emt 0:02:35]} 8. e4 {[%emt 0:02:18]} e5 {[%emt 0:05:04]} 9. h3 {[%emt 0:07:21]} exd4 {[%emt 0:08:36]} 10. Nxd4 {[%emt 0:00:27]} Qc5 {[%emt 0:00:05]} 11. Be3 {[%emt 0:06:14][%cal Od4b5] Threatens to win with Ndb5! E62: King's Indian: Fianchetto: 6...c6 and Panno Variation (6...Nc6) without ...a6.} Qxc4 {[%emt 0:00:38]} 12. Re1 {[%emt 0:01:04]} Qb4 {[%emt 0:15:17] [#]} 13. Qd2 $146 {[%emt 0:05:10] White is slightly better.} ({Predecessor:} 13. Nc2 Qa5 14. Qxd6 Rd8 15. Qc5 Qxc5 16. Bxc5 Na6 17. Be3 Ne8 18. Rad1 Be6 19. Bf1 {0-1 (36) Butnorius,A (2440)-Piesina,G (2400) Radviliskis 1995}) 13... Qa5 {[%emt 0:05:41]} 14. Rad1 {[%emt 0:08:04]} Ne8 {[%emt 0:09:01]} 15. f4 {[%emt 0:13:29]} f5 {[%emt 0:11:50]} (15... Nd7 $14) 16. exf5 $16 {[%emt 0:02:09]} gxf5 {[%emt 0:00:22]} 17. Bf2 {[%emt 0:01:26]} Qd8 {[%emt 0:03:56] [#]} (17... Kh8 $16) 18. b4 $1 $18 {[%emt 0:08:47]} d5 {[%emt 0:07:55]} 19. b5 {[%emt 0:01:25]} Nf6 {[%emt 0:02:25]} 20. Qc2 {[%emt 0:07:22] aiming for bxc6.} Kh8 {[%emt 0:03:01]} (20... Ne4 $2 21. bxc6 bxc6 22. Nxe4 fxe4 23. Nxc6 Nxc6 24. Qxc6) 21. bxc6 {[%emt 0:12:27]} (21. Nxf5 $18 Bxf5 22. Qxf5) 21... bxc6 $16 {[%emt 0:00:10]} 22. Na4 {[%emt 0:01:04] White is much more active. The black rooks are badly placed.} (22. Re5 $16) 22... Qd6 $2 {[%emt 0:02:11] White leaves nothing to chance now.} (22... Ne4 $1 $11 {and Black stays safe.}) 23. Nxf5 {[%emt 0:01:47]} Bxf5 {[%emt 0:00:18]} 24. Qxf5 {[%emt 0:00:02]} Nbd7 {[%emt 0:00:13] [#]} 25. Re6 $1 {[%emt 0:01:11]} Qa3 {[%emt 0:04:27] ...Ne4 is the strong threat.} 26. Qc2 {[%emt 0:00:57] Prevents Ne4.} Rac8 {[%emt 0:00:40]} 27. Rd3 {[%emt 0:05:42][%cal Bd1d3,Bd3b3,Bb3b7][%mdl 32]} (27. Rxc6 $6 Rxc6 28. Qxc6 Qxa2 29. Bxd5 Nxd5 $18) 27... Qb4 {[%emt 0:00:38]} 28. Nc5 {[%emt 0:00:26]} ({Not} 28. Bxa7 Ra8 29. Bc5 Qxa4 $14) ({Stronger than} 28. Rxc6 Rxc6 29. Qxc6 Qb1+ 30. Bf1 Ne5 31. fxe5 Ne4 $11) 28... Nb6 {[%emt 0:01:42]} 29. Rb3 {[%emt 0:02:48]} Qc4 {[%emt 0:00:43]} 30. Qd2 {[%emt 0:01:47]} Nfd7 $2 {[%emt 0:10:52]} (30... Ne4 31. Nxe4 dxe4) 31. Nxd7 $18 {[%emt 0:03:56]} Nxd7 {[%emt 0:00:00]} 32. Bf1 {[%emt 0:00:46] This bishop pair is nice.} Qa4 {[%emt 0:00:00]} 33. Rb7 {[%emt 0:00:23][%csl LRa7,LRd7]} Nb6 {[%emt 0:00:48]} 34. Ree7 {[%emt 0:00:37][%cal Be6e7,Be7g7,Bg7a7][%mdl 32]} Rg8 {[%emt 0:00:26]} 35. Rxa7 {[%emt 0:00:51]} Nc4 {[%emt 0:00:09] [#]} 36. Qd4 $3 {[%emt 0:00:54][%cal Re7g7][%mdl 512]} c5 {[%emt 0:00:34] [#]} (36... Qxa7 37. Qxa7) 37. Rxg7 $1 {[%emt 0:00:23][%csl Ga7][%cal Rg7h7][%mdl 512]} Qxa7 {[%emt 0:00:29]} 38. Rxa7+ {[%emt 0:00:10] Weighted Error Value: White=0.13 (very precise) /Black=0.88} 1-0

[Event "Charlotte IM-C May 2022"]
[Site "Charlotte"]
[Date "2022.05.07"]
[Round "5.2"]
[White "Andrews, Todd"]
[Black "Andrianov, Nikolai"]
[Result "0-1"]
[ECO "B32"]
[WhiteElo "2209"]
[BlackElo "2317"]
[Annotator "TA"]
[PlyCount "78"]
[EventDate "2022.05.04"]
[EventType "tourn"]
[EventCountry "USA"]
[SourceTitle "playchess.com"]
[Source "ChessBase"]
[SourceQuality "1"]
[TimeControl "5400+30"]

{[%evp 11,78,-1,0,-95,-76,-62,-75,-92,-16,-23,-16,-16,-4,-55,-41,-50,-37,-25,-34,-46,-29,-35,-33,-29,-35,-57,-57,-47,-49,-58,-50,-79,-76,-80,-75,-76,-75,-82,-76,-139,-155,-195,-192,-234,-245,-270,-267,-443,-438,-525,-425,-840,-840,-941,-939,-917,-859,-904,-895,-1050,-942,-1293,-1286,-1224,-928,-1262,-1241,-829,-804]} 1. e4 {[%emt 0:07:02]} c5 {[%emt 0:00:04]} 2. Nf3 {[%emt 0:00:07][%cal Bg1f3,Bf3d4,Bd4b5,Bb5c3][%mdl 32]} Nc6 {[%emt 0:00:09]} 3. d4 {[%emt 0:00:08]} cxd4 {[%emt 0:00:04]} 4. Nxd4 {[%emt 0:00:07]} e5 {[%emt 0:00:24]} 5. Nb5 {[%emt 0:00:10]} d6 {[%emt 0:00:05]} 6. a4 {[%emt 0:02:23]} Be6 {[%emt 0:04:34] [#]} 7. Ra3 $146 {[%emt 0:09:21] B32: Sicilian: Löwenthal and Kalashnikov Variations.} (7. N1c3 $11 {keeps the balance.}) ({Predecessor:} 7. N1c3 a6 8. Na3 Rc8 9. Bc4 Nf6 10. Bg5 Be7 11. Bxf6 Bxf6 12. Nd5 O-O 13. O-O g6 14. c3 Bg7 15. Qd3 Kh8 16. Rad1 Qg5 17. Nc2 f5 18. Nb6 fxe4 19. Qe3 Qxe3 20. Nxe3 Bxc4 21. Nexc4 {1-0 (48) Petrosian,T (2601)-Aronian,L (2775) Moscow 2019}) 7... a6 $17 {[%emt 0:04:22]} ({Don't play} 7... d5 8. exd5 Bb4+ {[#]} 9. Rc3 $1 $16 {[%mdl 512]}) 8. N5c3 {[%emt 0:00:08]} Nf6 {[%emt 0:14:41]} 9. Bg5 {[%emt 0:01:04] Black is better.} Be7 {[%emt 0:21:24]} (9... Qa5 $17 {Strongly threatening ...Nxe4.} 10. Bd2 Qc5) 10. Bxf6 $11 {[%emt 0:02:32]} Bxf6 {[%emt 0:00:09]} 11. Nd5 {[%emt 0:02:24]} O-O {[%emt 0:02:06]} 12. Rd3 {[%emt 0:10:44]} ({Better is} 12. Bc4 $11) 12... Bxd5 {[%emt 0:03:00]} 13. exd5 {[%emt 0:05:00]} e4 {[%emt 0:07:36]} 14. Re3 {[%emt 0:07:06]} Ne7 {[%emt 0:04:17]} 15. c3 {[%emt 0:01:41]} Qb6 {[%emt 0:08:24]} 16. Bc4 {[%emt 0:04:28]} Nf5 {[%emt 0:05:52]} 17. Rxe4 {[%emt 0:04:22]} Rfe8 {[%emt 0:03:43]} 18. Qe2 {[%emt 0:02:31]} Rxe4 {[%emt 0:00:09]} 19. Qxe4 {[%emt 0:00:02] [#]} Qxb2 $1 {[%emt 0:00:12]} 20. O-O {[%emt 0:00:14]} g6 $36 {[%emt 0:00:16][%mdl 2048] Black has the initiative.} 21. Qf3 {[%emt 0:06:24]} Kg7 {[%emt 0:00:49] 0x0.000ec2f0b10bdp-1022s more active pieces. The white rooks are badly placed. Black continues to play with concentration.} 22. Bd3 {[%emt 0:00:42]} Ne7 {[%emt 0:00:29]} 23. Re1 {[%emt 0:00:33]} Qa2 {[%emt 0:01:14]} 24. c4 {[%emt 0:01:21]} Qxa4 {[%emt 0:00:27]} 25. g3 {[%emt 0:01:02]} (25. Nd2 $142) 25... Qb4 $17 {[%emt 0:01:31]} 26. Re2 {[%emt 0:01:41]} a5 {[%emt 0:01:32][%cal Ba6a5,Ba5a4][%mdl 32]} 27. Nd2 {[%emt 0:00:04]} a4 {[%emt 0:00:15] ...a3 is the strong threat.} 28. Ne4 {[%emt 0:00:28]} Ng8 {[%emt 0:02:18]} 29. c5 $2 {[%emt 0:05:23]} (29. Ra2) 29... dxc5 $19 {[%emt 0:00:10] Threatens to win with ...c4. Black is clearly winning.} 30. Nd6 {[%emt 0:00:33] Inhibits c4.} c4 {[%emt 0:06:36]} 31. Ne8+ {[%emt 0:02:10] [#]} (31. Nxc4 $142 b5 32. Ne3) 31... Rxe8 $1 {[%emt 0:00:15]} 32. Rxe8 {[%emt 0:00:03]} (32. Bxc4 Rxe2) 32... cxd3 {[%emt 0:00:07]} 33. Qxd3 {[%emt 0:00:24]} a3 {[%emt 0:03:03]} 34. Ra8 {[%emt 0:00:22]} Be7 {[%emt 0:00:18]} 35. h4 {[%emt 0:02:33]} Nf6 {[%emt 0:00:17] And now ...Bc5 would win.} 36. Qe3 {[%emt 0:01:32]} Qb1+ {[%emt 0:02:22]} 37. Kg2 {[%emt 0:00:20]} Qe4+ {[%emt 0:00:15]} 38. Qxe4 {[%emt 0:00:02]} Nxe4 {[%emt 0:00:06]} 39. Ra7 {[%emt 0:00:19]} Bc5 {[%emt 0:00:15][%csl LRa7,LRf2] Weighted Error Value: White=0.69/Black=0.08 (flawless)} 0-1

[Event "Charlotte IM-C May 2022"]
[Site "Charlotte"]
[Date "2022.05.07"]
[Round "5.3"]
[White "Fawole, John Oyeyemi"]
[Black "Wang, Tianqi"]
[Result "1/2-1/2"]
[ECO "E09"]
[WhiteElo "2118"]
[BlackElo "2331"]
[Annotator "TA"]
[PlyCount "42"]
[EventDate "2022.05.04"]
[EventType "tourn"]
[EventCountry "USA"]
[SourceTitle "playchess.com"]
[Source "ChessBase"]
[SourceQuality "1"]
[TimeControl "5400+30"]

{[%evp 24,28,48,35,35,22,24]} 1. d4 {[%emt 0:01:04] Primel,D} Nf6 {[%emt 0:00:13]} 2. Nf3 {[%emt 0:00:10]} d5 {[%emt 0:00:07]} 3. g3 {[%emt 0:00:12]} e6 {[%emt 0:01:16]} 4. Bg2 {[%emt 0:00:02]} Be7 {[%emt 1:30:54]} 5. O-O {[%emt 0:00:28]} O-O {[%emt 0:00:00]} 6. Nbd2 {[%emt 0:00:24]} Nbd7 {[%emt 0:00:00]} 7. c4 {[%emt 0:00:23]} c6 {[%emt 0:00:00]} 8. Qc2 {[%emt 0:00:25]} b6 {[%emt 0:00:00]} 9. e4 {[%emt 0:00:18]} Nxe4 {[%emt 0:00:00]} 10. Nxe4 {[%emt 0:00:06]} dxe4 {[%emt 0:00:00]} 11. Qxe4 {[%emt 0:00:05]} Bb7 {[%emt 0:00:00]} 12. Rd1 {[%emt 0:00:49]} Qc8 {[%emt 0:00:00]} 13. Qe2 {[%emt 0:02:49]} Re8 {[%emt 0:00:00] E09: Closed Catalan: Main Line: 7 Qc2 c6 8 Nbd2.} 14. Bg5 {[%emt 0:01:48]} Bf8 {[%emt 0:00:00] [#] Not much happened in this game.} {Predecessor:} 15. Rd3 $146 h6 16. Be3 c5 17. Rad1 Be7 18. h4 Bf8 19. b3 Be7 20. R3d2 Bf6 21. dxc5 Nxc5 {0-1 (45) Kurajica,B (2533)-Payen,A (2333) Cappelle la Grande 2016 EXT 2017 [Primel,D]} 1/2-1/2

[Event "Charlotte IM-C May 2022"]
[Site "Charlotte"]
[Date "2022.05.07"]
[Round "5.4"]
[White "Rorrer, Grayson"]
[Black "Johnson, Donald"]
[Result "0-1"]
[ECO "B90"]
[WhiteElo "2204"]
[BlackElo "2102"]
[Annotator "TA"]
[PlyCount "66"]
[EventDate "2022.05.04"]
[EventType "tourn"]
[EventCountry "USA"]
[SourceTitle "playchess.com"]
[Source "ChessBase"]
[SourceQuality "1"]
[TimeControl "5400+30"]

{[%evp 11,66,11,8,0,0,0,8,0,4,5,21,0,6,0,0,-22,0,-15,0,-56,-45,-52,0,0,6,-62,-77,-214,-222,-220,-199,-216,-217,-234,-236,-214,-231,-187,-145,-194,-174,-180,-141,-217,-209,-218,-206,-211,-197,-210,-210,-235,-228,-737,-722,-1259,-1206]} 1. e4 {[%emt 0:00:02]} c5 {[%emt 0:00:01]} 2. Nf3 {[%emt 0:00:08]} d6 {[%emt 0:00:04]} 3. d4 {[%emt 0:00:06]} cxd4 {[%emt 0:00:01]} 4. Nxd4 {[%emt 0:00:08]} Nf6 {[%emt 0:00:05]} 5. Nc3 {[%emt 0:00:05]} a6 {[%emt 0:00:01]} 6. h3 {[%emt 0:00:08]} e5 {[%emt 0:00:02] 6...e5 is better than 6...e6.} 7. Nf3 {[%emt 0:00:09] B90: Sicilian Najdorf: Unusual White 6th moves, 6 Be3 Ng4 and 6 Be3 e5.} Be7 {[%emt 0:00:07]} 8. Bc4 {[%emt 0:00:15]} Be6 {[%emt 0:00:12]} 9. Bb3 {[%emt 0:00:44] The position is equal.} O-O {[%emt 0:00:34]} 10. O-O {[%emt 0:00:34]} h6 {[%emt 0:00:11]} 11. Be3 {[%emt 0:04:32]} Nc6 {[%emt 0:23:37]} 12. Nh4 {[#]} Na5 $146 {[%emt 1:11:35]} ({Predecessor:} 12... Bxb3 13. axb3 Nxe4 14. Nxe4 Bxh4 15. Qxd6 Be7 16. Qxd8 Rfxd8 17. g4 Nb4 18. c4 Nc2 {1-0 (37) Lintchevski,D (2516)-Giri,A (2783) St Petersburg 2018}) 13. Bxe6 {[%emt 0:12:18]} fxe6 {[%emt 0:00:00]} 14. Ng6 {[%emt 0:00:02]} Rf7 {[%emt 0:00:00]} 15. f4 {[%emt 0:00:53]} (15. Qe2 $11) 15... Nc4 $15 {[%emt 0:00:00][%csl LRb2,LRe3]} 16. Qe2 {[%emt 0:00:24]} Nxe3 {[%emt 0:00:00]} ({Better is} 16... Rc8 $15) 17. Qxe3 $11 {[%emt 0:00:02]} Nd7 {[%emt 0:00:00][%cal Bf6d7,Bd7e5,Be5d3][%mdl 32]} 18. Qg3 {[%emt 0:12:47]} (18. f5 $11 Bg5 19. Qe2 Qb6+ 20. Kh1 exf5 21. exf5) 18... exf4 {[%emt 0:00:00]} 19. Nxf4 {[%emt 0:00:41] [#] This move loses the game for White.} (19. Nxe7+ $17 {keeps fighting.} Rxe7 20. Rxf4 (20. Qxf4 Qb6+ 21. Kh2 Ne5 $17)) 19... Qb6+ $1 $19 {[%emt 0:00:00]} 20. Kh2 {[%emt 0:00:31] [#]} Bf6 {[%emt 0:00:00]} 21. Nd3 {[%emt 0:25:33]} ({But not} 21. Nxe6 $2 Be5 22. Nf4 Qxb2 $19) 21... Ne5 {[%emt 0:00:00]} 22. Kh1 {[%emt 0:00:11]} Nxd3 {[%emt 0:00:00]} 23. Qxd3 {[%emt 0:00:16]} Qxb2 {[%emt 0:00:00]} 24. Ne2 {[%emt 0:00:03]} Qb5 {[%emt 0:00:00]} 25. c4 {[%emt 0:00:31]} (25. Rac1 $17) 25... Qc6 {[%emt 0:00:00]} 26. Rad1 {[%emt 0:00:29]} Raf8 {[%emt 0:00:00]} 27. Nf4 {[%emt 0:00:21]} (27. Nd4 $17 {is a better defense.} Bxd4 28. Rxf7 Rxf7 29. Qxd4) 27... Be5 {[%emt 0:00:00]} 28. Nxe6 {[%emt 0:01:08]} Rxf1+ {[%emt 0:00:00]} 29. Rxf1 {[%emt 0:00:01]} Rxf1+ {[%emt 0:00:00]} 30. Qxf1 {[%emt 0:00:02]} Qxe4 {[%emt 0:00:00] KQB-KQN} 31. a4 {[%emt 0:00:48]} Qg6 {[%emt 0:00:00]} 32. Qf8+ $2 {[%emt 0:00:30]} (32. Nd8) 32... Kh7 {[%emt 0:00:00] ( -> ...Qb1+)} 33. Nf4 {[%emt 0:00:09]} Qe4 $1 {[%emt 0:00:00][%csl LRc4,LRf4] Weighted Error Value: White=0.52/Black=0.08 (flawless)} 0-1

[Event "Charlotte IM-C May 2022"]
[Site "Charlotte"]
[Date "2022.05.07"]
[Round "5.5"]
[White "Canty, James"]
[Black "Zapata, Alonso"]
[Result "0-1"]
[ECO "B48"]
[WhiteElo "2225"]
[BlackElo "2367"]
[Annotator "TA"]
[PlyCount "50"]
[EventDate "2022.05.04"]
[EventType "tourn"]
[EventCountry "USA"]
[SourceTitle "playchess.com"]
[Source "ChessBase"]
[SourceQuality "1"]
[TimeControl "5400+30"]

{[%evp 11,50,37,32,24,21,20,80,71,54,49,109,109,114,107,109,92,123,67,69,0,0,-77,-85,-68,-91,-91,-71,-107,-114,-154,-41,-154,-148,-147,-160,-146,-126,-221,-174,-583,-231]} 1. e4 {[%emt 0:00:02]} c5 {[%emt 0:02:05]} 2. Nf3 {[%emt 0:00:06]} Nc6 {[%emt 0:00:14]} 3. d4 {[%emt 0:00:09]} cxd4 {[%emt 0:00:06]} 4. Nxd4 {[%emt 0:00:05]} e6 {[%emt 0:00:11]} 5. Nc3 {[%emt 0:00:07]} Qc7 {[%emt 0:00:10]} 6. Be3 {[%emt 0:00:05]} a6 {[%emt 0:00:08]} 7. g4 {[%emt 0:00:06] B48: Sicilian: Taimanov: 5 Nc3 Qc7 6 Be3 a6 without Be2.} Bb4 {[%emt 0:03:13]} 8. Nxc6 {[%emt 0:00:18]} bxc6 {[%emt 0:13:23]} (8... Bxc3+ $11 {remains equal.} 9. bxc3 bxc6) 9. Qd4 $16 {[%emt 0:01:42][%csl LRb4,LRg7] White is better.} Be7 {[%emt 0:00:35] [#]} 10. O-O-O $146 {[%emt 0:03:09]} (10. Qxg7 Bf6 11. Bh6 Bxg7 $17) ({Predecessor:} 10. g5 e5 11. Qd2 h6 12. gxh6 Nxh6 13. Rg1 Bf6 14. O-O-O Rb8 15. Bc5 d5 16. exd5 Bg4 17. Be2 Bxe2 18. Qxe2 Qa5 19. Bd6 Rb7 20. dxc6 Ra7 21. Rd5 {1-0 (21) Piccoli,L (2075)-Ferreira,A Cuiaba 2021}) 10... c5 {[%emt 0:04:01]} (10... h6 $14) 11. Qd2 $1 {[%emt 0:01:28]} (11. Qxg7 Bf6 12. Bh6 Bxg7 $17) 11... Nf6 {[%emt 0:13:16]} 12. f3 {[%emt 0:08:37]} O-O {[%emt 0:07:11][%cal Od7d5]} 13. g5 {[%emt 0:02:26]} Ne8 {[%emt 0:03:34]} 14. f4 {[%emt 0:00:16]} ({White should try} 14. h4 $16) 14... Rb8 $14 {[%emt 0:03:13]} 15. f5 {[%emt 0:00:48]} (15. Rg1 $14) 15... Bd6 $1 $11 {[%emt 0:00:25]} 16. Qf2 {[%emt 0:14:36]} (16. f6 $11) 16... Be5 $1 $17 {[%emt 0:03:35]} 17. Bxc5 {[%emt 0:05:03]} Bxc3 {[%emt 0:00:46]} (17... Qb7 18. b3 $1 d6 19. Bd4 $14) 18. bxc3 {[%emt 0:00:16] Strongly threatening fxe6.} d6 $1 {[%emt 0:00:30]} 19. Ba3 {[%emt 0:00:29]} Qxc3 {[%emt 0:04:07]} 20. Rd3 {[%emt 0:00:07]} Qa1+ {[%emt 0:03:01]} 21. Kd2 {[%emt 0:00:07]} Rb1 {[%emt 0:04:18][%cal Bb8b1,Bb1d1,Bd1d3][%mdl 32] White must now prevent ...exf5.} 22. Qd4 {[%emt 0:03:31] [#]} Rd1+ {[%emt 0:13:58]} ({Resist} 22... Qxa2 23. e5 $16 (23. Bg2 e5 $11)) (22... exf5 $6 23. Qxa1 Rxa1 24. Bg2 Rxh1 25. Bxh1 $11) 23. Ke3 {[%emt 0:00:33] [#]} Rxd3+ {[%emt 0:00:29]} 24. Qxd3 {[%emt 0:01:20]} (24. Kxd3 $17 {was worth a try.} Qd1+ 25. Ke3 Qe1+ 26. Kd3 (26. Kf3 $2 exf5 27. Bb4 Qh4 $19)) 24... exf5 {[%emt 0:00:26] Threatens to win with ...Qe1+.} 25. exf5 $2 {[%emt 0:01:28]} (25. Bg2 {is more resistant.} Qe5 26. Qd4 f4+ 27. Kd3 Qxg5 28. Bf3) 25... Qe5+ $2 {[%emt 0:01:18] Weighted Error Value: White=0.54/Black=0.11 (very precise)} (25... Qe1+ 26. Qe2 Qa5) 0-1